fUSD/lending_fUSD_20250115
["ID","MTS","AMOUNT","RATE_DAILY","PERIOD"]
[348969420,1736902265366,-500.0,0.0001456,2]
[348969421,1736902265376,-886.6,0.0001456,2]
[348969422,1736902265385,-1673.77,0.0001456,2]
[348969423,1736902265395,-539.23,0.0001456,2]
[348969424,1736902265404,-944.05,0.0001456,2]
[348969425,1736902265414,-675.08,0.0001456,2]
[348969426,1736902265423,-3490.19,0.0001456,2]
[348969427,1736902265433,-814.1,0.0001456,2]
[348969428,1736902265442,-813.22,0.0001456,2]
[348969429,1736902265452,-791.95,0.00014561,2]
[348969430,1736902265462,-2046.99,0.00014651,2]
[348969431,1736902265472,-951.72,0.00014656,2]
[348969432,1736902265482,-500.0,0.00014656,2]
[348969433,1736902265491,-500.0,0.00014656,2]
[348969434,1736902265502,-899.21,0.00014656,2]
[348969435,1736902265512,-500.0,0.00014656,2]
[348969436,1736902265522,-2049.43,0.00014656,2]
[348969437,1736902265532,-570.3,0.00014656,2]
[348969438,1736902265541,-1049.34,0.00014656,2]
[348969439,1736902265553,-508.03,0.00014656,2]
[348969440,1736902265563,-892.05,0.00014656,2]
[348969441,1736902265577,-931.61,0.00014656,2]
[348969442,1736902265587,-592.57,0.00014656,2]
[348969443,1736902265598,-500.0,0.00014656,2]
[348969444,1736902265608,-1565.46,0.00014656,2]
[348969445,1736902265617,-689.17,0.00014656,2]
[348969446,1736902265628,-500.0,0.00014656,2]
[348969447,1736902265638,-605.03,0.00014656,2]
[348969448,1736902265649,-556.38,0.00014656,2]
[348969449,1736902265659,-726.61,0.00014656,2]
[348969450,1736902265669,-884.02,0.00014656,2]
[348969451,1736902265679,-500.0,0.00014656,2]
[348969452,1736902265688,-500.0,0.00014656,2]
[348969453,1736902265697,-462.3,0.00014656,2]
[348969454,1736902265707,-500.0,0.00014657,2]
[348969455,1736902265717,-487.07167178,0.00014657,2]
[348969456,1736902265726,-395.63909221,0.00014657,2]
[348969457,1736902265735,-500.0,0.00014657,2]
[348969458,1736902265745,-500.0,0.00014657,2]
[348969459,1736902265755,-3236.94,0.00014657,2]
[348969460,1736902265765,-500.0,0.00014678,2]
[348969461,1736902265777,-1303.90513457,0.00014693,2]
[348969462,1736902265787,-500.0,0.00014709,2]
[348969463,1736902265796,-500.0,0.00014709,2]
[348969464,1736902265806,-690.28,0.00014709,2]
[348969465,1736902265816,-1042.68,0.00014709,2]
[348969466,1736902265829,-702.21,0.00014709,2]
[348969467,1736902265838,-542.6,0.00014709,2]
[348969468,1736902265847,-440.87787,0.00014709,2]
[348969469,1736902265857,-1935.69,0.00014709,2]
[348969470,1736902265866,-377.528336,0.00014709,2]
[348969471,1736902265877,-561.38,0.00014709,2]
[348969472,1736902265887,-1877.16,0.00014709,2]
[348969473,1736902265897,-790.45,0.00014709,2]
[348969474,1736902265906,-500.0,0.00014709,2]
[348969475,1736902265916,-521.46,0.00014709,2]
[348969476,1736902265926,-835.12,0.00014709,2]
[348969477,1736902265935,-1090.69,0.00014709,2]
[348969478,1736902265945,-680.91,0.00014709,2]
[348969479,1736902265954,-1150.27,0.00014709,2]
[348969480,1736902265964,-643.4,0.00014709,2]
[348969481,1736902265974,-1831.33,0.00014709,2]
[348969482,1736902265984,-2114.55,0.00014709,2]
[348969483,1736902265994,-1143.31,0.00014709,2]
[348969484,1736902266004,-956.73,0.0001471,2]
[348969485,1736902266014,-1495.0,0.0001471,2]
[348969486,1736902266024,-879.17,0.0001471,2]
[348969487,1736902266034,-695.35,0.0001471,2]
[348969488,1736902266044,-974.21753855,0.00014786,2]
[348969489,1736902266053,-500.0,0.00014815,2]
[348969490,1736902266063,-500.0,0.00014815,2]
[348969491,1736902266075,-500.0,0.00014815,2]
[348969492,1736902266085,-874.92,0.00014815,2]
[348969493,1736902266094,-623.25,0.00014815,2]
[348969494,1736902266103,-500.0,0.00014815,2]
[348969495,1736902266114,-515.49,0.00014815,2]
[348969496,1736902266123,-500.0,0.00014815,2]
[348969497,1736902266134,-818.93,0.00014815,2]
[348969498,1736902266144,-1198.71,0.00014815,2]
[348969499,1736902266154,-343.1239443,0.00014815,2]
[348969500,1736902266164,-637.85,0.00014815,2]
[348969501,1736902266174,-556.55,0.00014816,2]
[348969502,1736902266184,-1182.14,0.00014816,2]
[348969503,1736902266194,-500.0,0.00014833,2]
[348969504,1736902266204,-257.63232773,0.00014833,2]
[348969505,1736902266213,-500.0,0.00014833,2]
[348969506,1736902266222,-500.0,0.00014833,2]
[348969507,1736902266231,-500.0,0.00014833,2]
[348969508,1736902266241,-500.0,0.00014833,2]
[348969509,1736902266250,-500.0,0.00014833,2]
[348969510,1736902266259,-500.0,0.00014833,2]
[348969511,1736902266270,-500.0,0.00014833,2]
[348969512,1736902266279,-500.0,0.00014833,2]
[348969513,1736902266288,-500.0,0.00014833,2]
[348969514,1736902266298,-2164.87,0.00014833,2]
[348969515,1736902266308,-500.0,0.00014833,2]
[348969516,1736902266319,-1563.89,0.00014833,2]
[348969517,1736902266330,-500.0,0.00014833,2]
[348969518,1736902266339,-1807.58,0.00014833,2]
[348969519,1736902266349,-500.0,0.00014833,2]
[348969520,1736902266358,-500.0,0.00014833,2]
[348969521,1736902266368,-559.04,0.00014833,2]
[348969522,1736902266377,-1693.07,0.00014834,2]
[348969523,1736902266386,-658.3,0.00014834,2]
[348969524,1736902266396,-677.7,0.00014834,2]
[348969525,1736902266406,-759.32,0.00014834,2]
[348969526,1736902266415,-613.63,0.00014834,2]
[348969527,1736902266424,-500.0,0.00014834,2]
[348969528,1736902266433,-1044.08,0.00014834,2]
[348969529,1736902266442,-626.43,0.00014834,2]
[348969530,1736902266452,-500.0,0.00014834,2]
[348969531,1736902266461,-886.6,0.00014834,2]
[348969532,1736902266471,-539.23,0.00014834,2]
[348969533,1736902266480,-1673.77,0.00014834,2]
[348969534,1736902266490,-944.05,0.00014834,2]
[348969535,1736902266499,-675.08,0.00014834,2]
[348969536,1736902266509,-3490.19,0.00014834,2]
[348969537,1736902266518,-814.1,0.00014834,2]
[348969538,1736902266528,-813.22,0.00014834,2]
[348969539,1736902266538,-791.95,0.00014835,2]
[348969540,1736902266548,-1889.49329344,0.00014849,12]
[348969541,1736902266561,-15530.14887112,0.00014888,2]
[348969542,1736902266571,-290.25843,0.00014888,2]
[348969543,1736902266582,-352.13747,0.00014888,2]
[348969544,1736902266591,-352.13747,0.00014888,2]
[348969545,1736902266604,-292.15523018,0.000149,2]
[348969546,1736902266613,-7859.20030041,0.000149,2]
[348969547,1736902266623,-19999.46071334,0.000149,2]
[348969548,1736902266797,-248.4321346,0.000149,2]
[348969549,1736902266810,-540.8045002,0.000149,2]
[348969550,1736902266819,-2046.99,0.00014925,2]
[348969551,1736902266829,-951.72,0.0001493,2]
[348969552,1736902266838,-500.0,0.0001493,2]
[348969553,1736902266847,-500.0,0.0001493,2]
[348969554,1736902266857,-899.21,0.0001493,2]
[348969555,1736902266867,-500.0,0.0001493,2]
[348969556,1736902266879,-2049.43,0.0001493,2]
[348969557,1736902266889,-570.3,0.0001493,2]
[348969558,1736902266899,-1049.34,0.0001493,2]
[348969559,1736902266908,-508.03,0.0001493,2]
[348969560,1736902266917,-892.05,0.0001493,2]
[348969561,1736902266927,-931.61,0.0001493,2]
[348969562,1736902266936,-592.57,0.0001493,2]
[348969563,1736902266945,-1565.46,0.0001493,2]
[348969564,1736902266955,-500.0,0.0001493,2]
[348969565,1736902266964,-689.17,0.0001493,2]
[348969566,1736902266974,-500.0,0.0001493,2]
[348969567,1736902266984,-605.03,0.0001493,2]
[348969568,1736902266993,-556.38,0.0001493,2]
[348969569,1736902267002,-884.02,0.0001493,2]
[348969570,1736902267012,-726.61,0.0001493,2]
[348969571,1736902267022,-500.0,0.0001493,2]
[348969572,1736902267031,-500.0,0.0001493,2]
[348969573,1736902267041,-500.0,0.00014931,2]
[348969574,1736902267050,-500.0,0.00014931,2]
[348969575,1736902267060,-500.0,0.00014931,2]
[348969576,1736902267070,-3236.94,0.00014931,2]
[348969577,1736902267080,-500.0,0.00014952,2]
[348969578,1736902267090,-500.0,0.00014973,2]
[348969579,1736902267101,-500.0,0.00014973,2]
[348969580,1736902267111,-151.79949148,0.00014973,2]
[348969581,1736902267121,-152.86823209,0.00014973,2]
[348969582,1736902267133,-150.87617963,0.00014973,2]
[348969583,1736902267143,-486.13976723,0.00014973,2]
[348969584,1736902267153,-206.47960471,0.00014973,2]
[348969585,1736902267162,-516.94878997,0.00014973,2]
[348969586,1736902267172,-315.10619619,0.00014973,2]
[348969587,1736902267182,-519.31360184,0.00014973,2]
[348969588,1736902267192,-515.8710133,0.00014973,2]
[348969589,1736902267201,-323.29116824,0.00014973,2]
[348969590,1736902267211,-156.8769742,0.00014973,2]
[348969591,1736902267221,-151.77374758,0.00014973,2]
[348969592,1736902267231,-151.77374758,0.00014973,2]
[348969593,1736902267241,-500.0,0.00014973,2]
[348969594,1736902267251,-500.0,0.00014973,2]
[348969595,1736902267260,-500.0,0.00014983,2]
[348969596,1736902267270,-500.0,0.00014983,2]
[348969597,1736902267279,-690.28,0.00014983,2]
[348969598,1736902267289,-1042.68,0.00014983,2]
[348969599,1736902267299,-702.21,0.00014983,2]
[348969600,1736902267309,-542.6,0.00014983,2]
[348969601,1736902267318,-440.87787,0.00014983,2]
[348969602,1736902267328,-1935.69,0.00014983,2]
[348969603,1736902267338,-377.528336,0.00014983,2]
[348969604,1736902267347,-561.38,0.00014983,2]
[348969605,1736902267357,-1877.16,0.00014983,2]
[348969606,1736902267366,-790.45,0.00014983,2]
[348969607,1736902267376,-500.0,0.00014983,2]
[348969608,1736902267385,-521.46,0.00014983,2]
[348969609,1736902267395,-835.12,0.00014983,2]
[348969610,1736902267404,-1090.69,0.00014983,2]
[348969611,1736902267414,-680.91,0.00014983,2]
[348969612,1736902267423,-1150.27,0.00014983,2]
[348969613,1736902267433,-643.4,0.00014983,2]
[348969614,1736902267443,-1831.33,0.00014983,2]
[348969615,1736902267455,-2114.55,0.00014983,2]
[348969616,1736902267467,-1143.31,0.00014983,2]
[348969617,1736902267478,-956.73,0.00014984,2]
[348969618,1736902267489,-1495.0,0.00014984,2]
[348969619,1736902267499,-879.17,0.00014984,2]
[348969620,1736902267509,-695.35,0.00014984,2]
[348969621,1736902267518,-3735.7164878,0.0001499,2]
[348969622,1736902267527,-2794.7997135,0.0001499,2]
[348969623,1736902267537,-1853.8829392,0.0001499,2]
[348969624,1736902267549,-1329.2496344,0.0001499,2]
[348969625,1736902267561,-994.4508662,0.0001499,2]
[348969626,1736902267573,-659.6520981,0.0001499,2]
[348969627,1736902267582,-7647.5176811,0.0001499,2]
[348969628,1736902267593,-5721.33359,0.0001499,2]
[348969629,1736902267604,-3795.1494988,0.0001499,2]
[348969630,1736902267614,-3347.9130481,0.0001499,2]
[348969631,1736902267624,-2504.6725195,0.0001499,2]
[348969632,1736902267635,-1661.4319909,0.0001499,2]
[348969633,1736902267647,-1671.9579978,0.0001499,2]
[348969634,1736902267656,-1252.374737,0.0001499,2]
[348969635,1736902267668,-832.7914762,0.0001499,2]
[348969636,1736902267679,-15012.0,0.00015,10]
[348969637,1736902267689,-5273.44965285,0.00015,14]
[348969638,1736902267698,-10000.0,0.00015,2]
[348969639,1736902267707,-500.0,0.00015,3]
[348969640,1736902267718,-500.0,0.00015,3]
[348969641,1736902267728,-500.0,0.00015,3]
[348969642,1736902267737,-10000.0,0.00015,2]
[348969643,1736902267746,-10000.0,0.00015,2]
[348969644,1736902267756,-1955.39982832,0.00015,2]
[348969645,1736902267765,-18098.7802758,0.00015,2]
[348969646,1736902267775,-14878.8866647,0.00015,2]
[348969647,1736902267785,-4169.87278586,0.00015,2]
[348969648,1736902267794,-413.55203922,0.00015,10]
[348969649,1736902267804,-34890.00809681,0.00015,2]
[348969650,1736902267814,-2079.0,0.00015,2]
[348969651,1736902267823,-10000.0,0.00015,2]
[348969652,1736902267833,-600.0,0.00015,4]
[348969653,1736902267842,-225.09,0.00015,4]
[348969654,1736902267852,-250.0,0.00015,10]
[348969655,1736902267863,-2089.82422953,0.00015,2]
[348969656,1736902267875,-11425.0,0.00015,2]
[348969657,1736902267885,-151.0,0.00015,2]
[348969658,1736902267896,-151.0,0.00015,2]
[348969659,1736902267906,-151.0,0.00015,2]
[348969660,1736902267917,-252.059126,0.00015,2]
[348969661,1736902267928,-2586.472182,0.00015,2]
[348969662,1736902267940,-252.059126,0.00015,2]
[348969663,1736902267950,-2586.472182,0.00015,2]
[348969664,1736902267960,-151.0,0.00015,2]
[348969665,1736902267970,-571.020754,0.00015,2]
[348969666,1736902267981,-571.020754,0.00015,2]
[348969667,1736902267990,-650.0,0.00015,2]
[348969668,1736902268001,-96843.12975512,0.00015,2]
[348969669,1736902268052,-150.0,0.00012114,2]
[348969670,1736902268062,-751.16768104,0.00015,2]
[348969671,1736902268074,-10634.5999995,0.00015,2]
[348969672,1736902268085,-16083.46437022,0.00015,2]
[348969673,1736902268112,-150.0,0.0001206,2]
[348969674,1736902268122,-150.0,0.00012183,2]
[348969675,1736902268132,-40445.12884981,0.00015,2]
[348969676,1736902268143,-570814.60260044,0.00015,2]
[348969704,1736903431910,-186.51,8.866e-05,2]
[348969705,1736903431920,-293.36529719,9.735e-05,2]
[348969706,1736903432084,-206.63470281,9.735e-05,2]
[348969707,1736903432094,-661.06,0.00010137,2]
[348969708,1736903432103,-188.05732309,0.00010628,2]
[348969709,1736903432115,-250.0,0.00010689,2]
[348969710,1736903432124,-1360.87991051,0.00010701,2]
[348969711,1736903432202,-2076.78358511,0.00010701,2]
[348969712,1736903432265,-4712.64650438,0.00010701,2]
[348969713,1736903432275,-250.0,0.00010719,2]
[348969714,1736903432284,-188.09,0.00010728,2]
[348969715,1736903432294,-250.0,0.00010749,2]
[348969716,1736903432306,-1000.0,0.00010893,2]
[348969717,1736903432316,-15206.1378,0.00010994,2]
[348969718,1736903432326,-188.05732309,0.00010994,2]
[348969719,1736903432337,-1000.0,0.00010995,2]
[348969720,1736903432346,-243.26,0.00011015,2]
[348969721,1736903432356,-150.0,0.00011093,2]
[348969722,1736903432366,-500.0,0.00011094,2]
[348969723,1736903432376,-500.0,0.00011094,2]
[348969724,1736903432387,-287.38519853,0.00011094,2]
[348969725,1736903432399,-212.61480147,0.00011094,2]
[348969726,1736903432409,-500.0,0.00011094,2]
[348969727,1736903432418,-543.7685035,0.00011094,2]
[348969728,1736903432427,-500.0,0.00011094,2]
[348969729,1736903432437,-500.0,0.00011094,2]
[348969730,1736903432447,-500.0,0.00011094,2]
[348969731,1736903432457,-500.0,0.00011094,2]
[348969732,1736903432467,-500.0,0.00011094,2]
[348969733,1736903432476,-499.689225,0.00011094,2]
[348969734,1736903432488,-0.310775,0.00011094,2]
[348969735,1736903432498,-516.361225,0.00011094,2]
[348969737,1736903432510,-14.4440022,0.00011094,2]
[348969739,1736903432519,-389.14655205,0.00011094,2]
[348969741,1736903432531,-110.85344795,0.00011094,2]
[348969743,1736903432540,-500.0,0.00011094,2]
[348969745,1736903432549,-500.0,0.00011094,2]
[348969747,1736903432559,-500.0,0.00011094,2]
[348969749,1736903432568,-500.0,0.00011094,2]
[348969751,1736903432577,-500.0,0.00011094,2]
[348969753,1736903432587,-500.0,0.00011094,2]
[348969755,1736903432596,-500.0,0.00011094,2]
[348969756,1736903432605,-500.0,0.00011094,2]
[348969757,1736903432615,-500.0,0.00011094,2]
[348969758,1736903432625,-500.0,0.00011094,2]
[348969759,1736903432635,-510.99590369,0.00011094,2]
[348969760,1736903432645,-500.0,0.00011094,2]
[348969761,1736903432654,-168.35646966,0.00011094,2]
[348969762,1736903432663,-500.0,0.00011094,2]
[348969763,1736903432673,-500.0,0.00011094,2]
[348969764,1736903432683,-500.0,0.00011094,2]
[348969765,1736903432692,-500.0,0.00011094,2]
[348969766,1736903432701,-500.0,0.00011094,2]
[348969767,1736903432711,-500.0,0.00011094,2]
[348969768,1736903432720,-511.2896865,0.00011094,2]
[348969769,1736903432729,-500.0,0.00011094,2]
[348969770,1736903432738,-500.0,0.00011094,2]
[348969771,1736903432747,-500.0,0.00011094,2]
[348969772,1736903432756,-500.0,0.00011094,2]
[348969773,1736903432765,-500.0,0.00011094,2]
[348969774,1736903432776,-500.0,0.00011094,2]
[348969775,1736903432785,-609.70855139,0.00011094,2]
[348969776,1736903432794,-500.0,0.00011094,2]
[348969777,1736903432803,-500.0,0.00011094,2]
[348969778,1736903432812,-500.0,0.00011094,2]
[348969779,1736903432821,-500.0,0.00011094,2]
[348969780,1736903432830,-500.0,0.00011094,2]
[348969781,1736903432839,-500.0,0.00011094,2]
[348969782,1736903432848,-500.0,0.00011094,2]
[348969783,1736903432858,-500.0,0.00011094,2]
[348969784,1736903432867,-500.0,0.00011094,2]
[348969785,1736903432876,-500.0,0.00011094,2]
[348969786,1736903432886,-500.0,0.00011094,2]
[348969787,1736903432895,-500.0,0.00011094,2]
[348969788,1736903432905,-500.0,0.00011094,2]
[348969789,1736903432916,-500.0,0.00011094,2]
[348969790,1736903432927,-471.95862488,0.00011094,2]
[348969791,1736903432937,-500.0,0.00011094,2]
[348969792,1736903432946,-500.0,0.00011094,2]
[348969793,1736903432955,-500.0,0.00011094,2]
[348969794,1736903432965,-500.0,0.00011094,2]
[348969795,1736903432975,-500.0,0.00011094,2]
[348969796,1736903432985,-500.0,0.00011094,2]
[348969797,1736903432995,-500.0,0.00011094,2]
[348969798,1736903433004,-500.0,0.00011094,2]
[348969799,1736903433014,-500.0,0.00011094,2]
[348969800,1736903433023,-500.0,0.00011094,2]
[348969801,1736903433032,-500.0,0.00011094,2]
[348969802,1736903433042,-500.0,0.00011094,2]
[348969803,1736903433051,-422.22733506,0.00011094,2]
[348969804,1736903433061,-577.93861152,0.00011094,2]
[348969805,1736903433070,-500.0,0.00011094,2]
[348969806,1736903433079,-500.0,0.00011094,2]
[348969807,1736903433088,-500.0,0.00011094,2]
[348969808,1736903433097,-500.0,0.00011094,2]
[348969809,1736903433107,-581.96,0.00011094,2]
[348969810,1736903433118,-162.81,0.00011128,2]
[348969811,1736903433127,-186.51,0.00011129,2]
[348969812,1736903433137,-200.0,0.000112,2]
[348969813,1736903433146,-457.28712458,0.00011368,2]
[348969814,1736903433156,-500.0,0.00011368,2]
[348969815,1736903433166,-500.0,0.00011368,2]
[348969816,1736903433175,-500.0,0.00011368,2]
[348969817,1736903433184,-500.0,0.00011368,2]
[348969818,1736903433197,-500.0,0.00011368,2]
[348969819,1736903433206,-500.0,0.00011368,2]
[348969820,1736903433215,-581.96,0.00011368,2]
[348969821,1736903433225,-1000.0,0.00011527,2]
[348969822,1736903433234,-500.0,0.00011527,2]
[348969823,1736903433244,-500.0,0.00011527,2]
[348969824,1736903433254,-524.79,0.00011527,2]
[348969825,1736903433264,-500.0,0.00011527,2]
[348969826,1736903433274,-705.2617,0.00011542,2]
[348969827,1736903433284,-500.0,0.00011637,2]
[348969828,1736903433293,-560.86,0.00011637,2]
[348969829,1736903433303,-162.39874853,0.00011637,2]
[348969830,1736903437769,-500.0,0.00011094,2]
[348969831,1736903437780,-500.0,0.00011368,2]
[348969832,1736903437790,-337.60125147,0.00011637,2]
[348969833,1736903437801,-188.460768,0.00011637,2]
[348969834,1736903437828,-311.539232,0.00011637,2]
[348969835,1736903437841,-500.0,0.00011637,2]
[348969836,1736903437853,-500.0,0.00011637,2]
[348969837,1736903437866,-500.0,0.00011637,2]
[348969838,1736903437878,-93.26420743,0.00011642,2]
[348969839,1736903437906,-299.55408151,0.00011642,2]
[348969840,1736903437919,-500.0,0.00011642,2]
[348969841,1736903437930,-500.0,0.00011642,2]
[348969842,1736903437941,-500.0,0.00011642,2]
[348969843,1736903437952,-500.0,0.00011642,2]
[348969844,1736903437963,-500.0,0.00011642,2]
[348969845,1736903437974,-581.96,0.00011642,2]
[348969846,1736903437984,-311.71144253,0.00011642,2]
[348970014,1736903439897,-188.28855747,0.00011642,2]
[348970016,1736903439907,-500.0,0.00011801,2]
[348970019,1736903439917,-524.79,0.00011801,2]
[348970021,1736903439928,-500.0,0.00011801,2]
[348970023,1736903439938,-465.81,0.00011802,2]
[348970025,1736903439949,-825.80658545,0.000119,2]
[348970027,1736903439959,-500.0,0.00011911,2]
[348970029,1736903439969,-560.86,0.00011911,2]
[348970031,1736903439979,-500.0,0.00011911,2]
[348970033,1736903439990,-500.0,0.00011911,2]
[348970035,1736903440000,-500.0,0.00011911,2]
[348970037,1736903440011,-170.89360391,0.00011916,2]
[348970040,1736903440021,-500.0,0.00011916,2]
[348970042,1736903440031,-500.0,0.00011916,2]
[348970044,1736903440041,-500.0,0.00011916,2]
[348970046,1736903440051,-500.0,0.00011916,2]
[348970048,1736903440061,-581.96,0.00011916,2]
[348970050,1736903440071,-500.0,0.00011916,2]
[348970052,1736903440081,-2706.75,0.00011969,2]
[348970054,1736903440091,-500.0,0.00011969,2]
[348970056,1736903440102,-662.71,0.00011969,2]
[348970058,1736903440113,-500.0,0.00011969,2]
[348970060,1736903440127,-500.0,0.00011969,2]
[348970063,1736903440137,-775.99,0.00011969,2]
[348970065,1736903440148,-500.0,0.00011969,2]
[348970067,1736903440158,-500.0,0.00011969,2]
[348970069,1736903440169,-500.0,0.00011969,2]
[348970071,1736903440179,-500.0,0.00011969,2]
[348970073,1736903440192,-500.0,0.00011969,2]
[348970075,1736903440203,-500.0,0.00011969,2]
[348970077,1736903440213,-500.0,0.00011969,2]
[348970079,1736903440224,-500.0,0.00011969,2]
[348970081,1736903440236,-500.0,0.00011969,2]
[348970084,1736903440246,-767.14,0.00011969,2]
[348970086,1736903440256,-1599.67,0.00011969,2]
[348970088,1736903440266,-500.0,0.00011969,2]
[348970090,1736903440276,-200.0,0.00012,2]
[348970092,1736903440287,-200.0,0.00012,5]
[348970094,1736903440296,-200.0,0.00012,6]
[348970096,1736903440308,-198.0,0.00012,7]
[348970098,1736903440319,-198.0,0.00012,8]
[348970100,1736903440330,-179.0,0.00012,9]
[348970102,1736903440341,-280.83814207,0.00012032,2]
[348970104,1736903440351,-200.0,0.00012068,2]
[348970106,1736903440361,-500.0,0.00012075,2]
[348970108,1736903440371,-524.79,0.00012075,2]
[348970110,1736903440382,-500.0,0.00012075,2]
[348970113,1736903440392,-153.44742952,0.00012089,2]
[348970115,1736903440402,-5000.0,0.00012089,2]
[348970117,1736903440413,-500.0,0.00012185,2]
[348970119,1736903440424,-560.86,0.00012185,2]
[348970121,1736903440434,-500.0,0.00012185,2]
[348970123,1736903440444,-500.0,0.00012185,2]
[348970125,1736903440455,-500.0,0.00012185,2]
[348970127,1736903440465,-500.0,0.00012189,2]
[348970129,1736903440476,-500.0,0.00012189,2]
[348970131,1736903440486,-500.0,0.00012189,2]
[348970133,1736903440496,-500.0,0.00012189,2]
[348970135,1736903440507,-406.8898259,0.00012189,2]
[348970138,1736903440519,-452.0208,0.00012189,2]
[348970140,1736903440530,-500.0,0.00012189,2]
[348970142,1736903440540,-500.0,0.00012189,2]
[348970144,1736903440550,-500.0,0.00012189,2]
[348970146,1736903440560,-500.0,0.00012189,2]
[348970148,1736903440570,-500.0,0.00012189,2]
[348970150,1736903440581,-500.0,0.00012189,2]
[348970152,1736903440591,-500.0,0.00012189,2]
[348970154,1736903440601,-500.0,0.00012189,2]
[348970156,1736903440611,-245.80602551,0.00012189,2]
[348970158,1736903440621,-500.0,0.00012189,2]
[348970160,1736903440632,-379.99445029,0.00012189,2]
[348970162,1736903440642,-500.0,0.00012189,2]
[348970164,1736903440653,-500.0,0.00012189,2]
[348970166,1736903440662,-500.5995242,0.00012189,2]
[348970169,1736903440672,-500.0,0.00012189,2]
[348970171,1736903440682,-500.0,0.00012189,2]
[348970172,1736903440692,-500.0,0.00012189,2]
[348970175,1736903440702,-500.0,0.00012189,2]
[348970177,1736903440712,-500.0,0.00012189,2]
[348970179,1736903440722,-500.0,0.00012189,2]
[348970181,1736903440731,-500.0,0.00012189,2]
[348970183,1736903440741,-500.0,0.00012189,2]
[348970185,1736903440752,-500.0,0.00012189,2]
[348970187,1736903440762,-520.16598063,0.00012189,2]
[348970189,1736903440772,-153.82668315,0.00012189,2]
[348970191,1736903440782,-500.0,0.00012189,2]
[348970193,1736903440793,-500.0,0.00012189,2]
[348970195,1736903440803,-500.0,0.00012189,2]
[348970197,1736903440813,-500.0,0.00012189,2]
[348970199,1736903440823,-500.0,0.00012189,2]
[348970201,1736903440833,-354.78217962,0.00012189,2]
[348970203,1736903440843,-500.0,0.00012189,2]
[348970206,1736903440854,-502.12161203,0.00012189,2]
[348970208,1736903440865,-500.0,0.00012189,2]
[348970210,1736903440875,-500.0,0.00012189,2]
[348970212,1736903440885,-500.0,0.00012189,2]
[348970214,1736903440896,-500.0,0.00012189,2]
[348970216,1736903440906,-500.0,0.00012189,2]
[348970218,1736903440917,-381.05947968,0.00012189,2]
[348970220,1736903440927,-500.0,0.00012189,2]
[348970222,1736903440937,-500.0,0.00012189,2]
[348970224,1736903440948,-500.0,0.00012189,2]
[348970226,1736903440957,-500.0,0.00012189,2]
[348970228,1736903440968,-500.0,0.00012189,2]
[348970230,1736903440978,-500.0,0.00012189,2]
[348970232,1736903440988,-500.0,0.00012189,2]
[348970234,1736903440998,-500.0,0.00012189,2]
[348970237,1736903441009,-500.0,0.00012189,2]
[348970239,1736903441019,-500.0,0.00012189,2]
[348970241,1736903441029,-500.0,0.00012189,2]